fUSD/lending_fUSD_20250530
["ID","MTS","AMOUNT","RATE_DAILY","PERIOD"]
[363194533,1748619143569,-1033.36,0.00025479,2]
[363194534,1748619143579,-1343.03,0.00025479,2]
[363194535,1748619143589,-657.44,0.00025479,2]
[363194536,1748619143599,-453.46,0.00025479,2]
[363194537,1748619143609,-1623.73,0.00025479,2]
[363194538,1748619143619,-1032.71,0.00025479,2]
[363194539,1748619143629,-3547.4,0.00025479,2]
[363194540,1748619143639,-458.54,0.00025479,2]
[363194541,1748619143649,-982.85,0.00025479,2]
[363194542,1748619143659,-1005.97,0.00025479,2]
[363194543,1748619143670,-3804.58,0.00025479,2]
[363194544,1748619143680,-1623.36,0.00025479,2]
[363194545,1748619143690,-37354.79,0.00025479,2]
[363194546,1748619143700,-937.17,0.00025479,2]
[363194547,1748619143710,-753.84,0.00025479,2]
[363194548,1748619143719,-1215.02,0.00025479,2]
[363194549,1748619143729,-10069.56,0.00025479,2]
[363194550,1748619143739,-2424.56,0.00025479,2]
[363194551,1748619143749,-1684.99,0.00025479,2]
[363194552,1748619143759,-7476.47,0.00025479,2]
[363194553,1748619143768,-519.37,0.00025479,2]
[363194554,1748619143778,-628.41,0.00025479,2]
[363194555,1748619143788,-868.93,0.00025479,2]
[363194556,1748619143797,-422.51,0.00025479,2]
[363194557,1748619143809,-1449.88,0.00025479,2]
[363194558,1748619143821,-14516.45,0.00025479,2]
[363194559,1748619143831,-4266.56,0.00025479,2]
[363194560,1748619143840,-1548.49,0.00025479,2]
[363194561,1748619143851,-830.49,0.00025479,2]
[363194562,1748619143861,-1884.76,0.00025479,2]
[363194563,1748619143870,-593.44,0.00025479,2]
[363194564,1748619143880,-542.86,0.00025479,2]
[363194565,1748619143890,-510.86,0.00025479,2]
[363194566,1748619143902,-1709.24,0.00025479,2]
[363194567,1748619143912,-1978.38,0.00025479,2]
[363194568,1748619143921,-2758.03,0.00025479,2]
[363194569,1748619143930,-215.9126018,0.00025479,2]
[363194570,1748619143940,-29722.14,0.00025479,2]
[363194571,1748619143949,-881.72,0.00025479,2]
[363194572,1748619143959,-1406.27,0.00025479,2]
[363194573,1748619143968,-1169.42,0.00025479,2]
[363194574,1748619143978,-1544.23,0.00025479,2]
[363194575,1748619143988,-826.36,0.00025479,2]
[363194576,1748619143998,-1175.33,0.00025479,2]
[363194577,1748619144008,-3295.64,0.00025479,2]
[363194578,1748619144017,-1761.11,0.00025479,2]
[363194579,1748619144027,-3573.53,0.00025479,2]
[363194580,1748619144037,-738.85,0.00025479,2]
[363194581,1748619144047,-1034.84,0.00025479,2]
[363194582,1748619144059,-1151.03,0.00025479,2]
[363194583,1748619144069,-9251.83,0.00025479,2]
[363194584,1748619144079,-660.71,0.00025479,2]
[363194585,1748619144088,-420.0,0.00025479,2]
[363194586,1748619144098,-772.03,0.00025479,2]
[363194587,1748619144108,-490.63,0.00025479,2]
[363194588,1748619144118,-720.83,0.00025479,2]
[363194589,1748619144128,-1360.32,0.00025479,2]
[363194590,1748619144138,-723.88,0.00025479,2]
[363194591,1748619144147,-567.24,0.00025479,2]
[363194592,1748619144157,-2486.32,0.00025479,2]
[363194593,1748619144167,-4470.51,0.00025479,2]
[363194594,1748619144177,-1446.13,0.00025479,2]
[363194595,1748619144187,-2304.2,0.00025479,2]
[363194596,1748619144197,-1389.12,0.00025479,2]
[363194597,1748619144206,-1054.71,0.00025479,2]
[363194598,1748619144216,-990.01,0.00025479,2]
[363194599,1748619144226,-1680.37,0.00025479,2]
[363194600,1748619144329,-521.76,0.00025479,2]
[363194601,1748619144339,-4095.54,0.00025479,2]
[363194602,1748619144348,-1486.66,0.00025479,2]
[363194603,1748619144358,-1336.51,0.00025479,2]
[363194604,1748619144368,-1487.37,0.00025479,2]
[363194605,1748619144378,-2771.35,0.00025479,2]
[363194606,1748619144387,-4189.49,0.00025479,2]
[363194607,1748619144397,-629.45,0.00025479,2]
[363194608,1748619144407,-2997.14,0.00025479,2]
[363194609,1748619144417,-1026.77,0.00025479,2]
[363194610,1748619144426,-1125.7,0.00025479,2]
[363194611,1748619144436,-614.16,0.00025479,2]
[363194612,1748619144445,-7561.37,0.00025479,2]
[363194613,1748619144455,-1258.89,0.00025479,2]
[363194614,1748619144463,-420.0,0.00025479,2]
[363194615,1748619144473,-1075.29,0.00025479,2]
[363194616,1748619144483,-760.57,0.00025479,2]
[363194617,1748619144492,-3180.63,0.00025479,2]
[363194618,1748619144502,-1927.78,0.00025479,2]
[363194619,1748619144512,-1656.75,0.00025479,2]
[363194620,1748619144521,-641.68,0.00025479,2]
[363194621,1748619144531,-420.0,0.00025479,2]
[363194622,1748619144541,-1318.91,0.00025479,2]
[363194623,1748619144550,-1139.98,0.00025479,2]
[363194624,1748619144562,-798.56,0.00025479,2]
[363194625,1748619144571,-1082.24,0.00025479,2]
[363194626,1748619144580,-718.05,0.00025479,2]
[363194627,1748619144591,-3419.97,0.00025479,2]
[363194628,1748619144601,-671.13,0.00025479,2]
[363194629,1748619144611,-1848.95,0.00025479,2]
[363194630,1748619144621,-1074.24,0.00025479,2]
[363194631,1748619144631,-2486.27,0.00025479,2]
[363194632,1748619144640,-1239.27,0.00025479,2]
[363194633,1748619144651,-420.0,0.00025479,2]
[363194634,1748619144661,-1822.33,0.00025479,2]
[363194635,1748619144670,-4083.38,0.00025479,2]
[363194636,1748619144680,-1501.86,0.00025479,2]
[363194637,1748619144691,-4025.56,0.00025479,2]
[363194638,1748619144700,-1358.16,0.00025479,2]
[363194639,1748619144710,-2713.7,0.00025479,2]
[363194640,1748619144720,-4868.11,0.00025479,2]
[363194641,1748619144731,-489.31,0.00025479,2]
[363194642,1748619144740,-742.91,0.00025479,2]
[363194643,1748619144750,-802.33,0.00025479,2]
[363194644,1748619144760,-937.93,0.00025479,2]
[363194645,1748619144770,-2531.82,0.00025479,2]
[363194646,1748619144779,-420.0,0.00025479,2]
[363194647,1748619144788,-420.0,0.00025479,2]
[363194648,1748619144798,-830.27,0.00025479,2]
[363194649,1748619144809,-703.73,0.00025479,2]
[363194650,1748619144820,-420.0,0.00025479,2]
[363194651,1748619144830,-7051.39,0.00025479,2]
[363194652,1748619144840,-622.77,0.00025479,2]
[363194653,1748619144851,-1538.8,0.00025479,2]
[363194654,1748619144860,-961.82,0.00025479,2]
[363194655,1748619144870,-19030.44,0.00025479,2]
[363194656,1748619144879,-1325.56,0.00025479,2]
[363194657,1748619144890,-2716.47,0.00025479,2]
[363194658,1748619144900,-702.43,0.00025479,2]
[363194659,1748619144911,-735.86,0.00025479,2]
[363194660,1748619144921,-760.22,0.00025479,2]
[363194661,1748619144931,-2783.11,0.00025479,2]
[363194662,1748619144941,-676.42,0.00025479,2]
[363194663,1748619144950,-734.54,0.00025479,2]
[363194664,1748619144961,-1264.47,0.00025479,2]
[363194665,1748619144971,-1663.09,0.00025479,2]
[363194666,1748619144981,-450.49,0.00025479,2]
[363194667,1748619144992,-6908.64,0.00025479,2]
[363194668,1748619145001,-1803.22,0.00025479,2]
[363194669,1748619145010,-420.0,0.00025479,2]
[363194670,1748619145020,-807.7,0.00025479,2]
[363194671,1748619145030,-3069.28,0.00025479,2]
[363194672,1748619145038,-466.47,0.00025479,2]
[363194673,1748619145046,-222.56191536,0.00025479,2]
[363194674,1748619145055,-420.0,0.00025479,2]
[363194675,1748619145067,-300.06,0.00025479,2]
[363194676,1748619145077,-1500.0,0.00025481,2]
[363194677,1748619145086,-2875.3452023,0.00025483,2]
[363194678,1748619145096,-22954.7652704,0.00025483,2]
[363194679,1748619145106,-4049.5936825,0.00025486,13]
[363194680,1748619145115,-6100.0,0.0002549,2]
[363194681,1748619145124,-17213.75,0.000255,2]
[363194682,1748619145134,-150.0,0.000255,15]
[363194683,1748619145143,-1000.0,0.000255,15]
[363194684,1748619145152,-2110.0,0.000255,2]
[363194685,1748619145162,-500.0,0.00025547,2]
[363194686,1748619145171,-309.23,0.00025595,120]
[363194687,1748619145182,-500.0,0.00025612,2]
[363194688,1748619145191,-500.0,0.00025616,2]
[363194689,1748619145201,-150.0,0.00025625,2]
[363194690,1748619145211,-980.858598,0.00025625,2]
[363194691,1748619145220,-1078.45113,0.00025625,2]
[363194692,1748619145230,-500.0,0.00025627,2]
[363194693,1748619145239,-500.0,0.00025666,2]
[363194694,1748619145249,-4049.5936825,0.00025693,13]
[363194695,1748619145259,-91546.1453648,0.00025717,2]
[363194696,1748619145268,-8795.1205427,0.00025717,2]
[363194697,1748619145277,-12376.79937215,0.00025725,13]
[363194698,1748619146340,-300.0,0.00019699,2]
[363194699,1748619146350,-245.63295893,0.00020717,2]
[363194700,1748619146359,-420.0,0.00021917,2]
[363194701,1748619146368,-420.0,0.00021917,2]
[363194702,1748619146378,-420.0,0.00021917,2]
[363194703,1748619146387,-732.13,0.00022191,2]
[363194704,1748619146397,-64.83704107,0.00022465,2]
[363194705,1748619146412,-357.93342779,0.00022465,2]
[363194706,1748619146422,-460.2,0.00022465,2]
[363194707,1748619146431,-16.44016274,0.00022465,2]
[363194708,1748619146443,-715.68983726,0.00022465,2]
[363194709,1748619146453,-460.2,0.00022739,2]
[363194710,1748619146463,-732.13,0.00022739,2]
[363194711,1748619146472,-1519.84,0.00023013,2]
[363194712,1748619146482,-460.2,0.00023013,2]
[363194713,1748619146492,-732.13,0.00023013,2]
[363194714,1748619146502,-1519.84,0.00023287,2]
[363194715,1748619146511,-460.2,0.00023287,2]
[363194716,1748619146521,-732.13,0.00023287,2]
[363194717,1748619146531,-1519.84,0.00023561,2]
[363194718,1748619146541,-460.2,0.00023561,2]
[363194719,1748619146550,-732.13,0.00023561,2]
[363194720,1748619146561,-1519.84,0.00023835,2]
[363194721,1748619146571,-460.2,0.00023835,2]
[363194722,1748619146580,-732.13,0.00023835,2]
[363194723,1748619146590,-2875.31,0.00024109,2]
[363194724,1748619146600,-1519.84,0.00024109,2]
[363194725,1748619146609,-460.2,0.00024109,2]
[363194726,1748619146620,-1271.23,0.00024383,2]
[363194727,1748619146630,-2875.31,0.00024383,2]
[363194728,1748619146639,-1013.92,0.00024383,2]
[363194729,1748619146648,-1519.84,0.00024383,2]
[363194730,1748619146657,-460.2,0.00024383,2]
[363194731,1748619146667,-1271.23,0.00024657,2]
[363194732,1748619146677,-2875.31,0.00024657,2]
[363194733,1748619146686,-1013.92,0.00024657,2]
[363194734,1748619146695,-1519.84,0.00024657,2]
[363194735,1748619146705,-1271.23,0.00024931,2]
[363194736,1748619146715,-2875.31,0.00024931,2]
[363194737,1748619146724,-1013.92,0.00024931,2]
[363194738,1748619146734,-1271.23,0.00025205,2]
[363194739,1748619146744,-2875.31,0.00025205,2]
[363194740,1748619146754,-1271.23,0.00025479,2]
[363194741,1748619146763,-2875.31,0.00025479,2]
[363194742,1748619146772,-11135.30062785,0.00025725,13]
[363194743,1748619146782,-197789.68,0.00025725,13]
[363194744,1748619146791,-69959.17,0.00025725,13]
[363194745,1748619146800,-25798.95,0.00025725,13]
[363194746,1748619146811,-11771.82,0.00025725,13]
[363194747,1748619146824,-4746.59,0.00025725,13]
[363194748,1748619146833,-25773.53,0.00025725,13]
[363194749,1748619146843,-2000.0,0.00025746,2]
[363194750,1748619146853,-420.0,0.00025753,2]
[363194751,1748619146863,-420.0,0.00025753,2]
[363194752,1748619146872,-441.8,0.00025753,2]
[363194753,1748619146882,-591.36,0.00025753,2]
[363194754,1748619146891,-468.16,0.00025753,2]
[363194755,1748619146902,-451.1,0.00025753,2]
[363194756,1748619146912,-420.3,0.00025753,2]
[363194757,1748619146921,-420.0,0.00025753,2]
[363194758,1748619146930,-853.41,0.00025753,2]
[363194759,1748619146939,-420.0,0.00025753,2]
[363194760,1748619146949,-525.07,0.00025753,2]
[363194761,1748619146958,-420.0,0.00025753,2]
[363194762,1748619146968,-502.76,0.00025753,2]
[363194763,1748619146977,-1167.56,0.00025753,2]
[363194764,1748619146987,-769.78,0.00025753,2]
[363194765,1748619146997,-499.23,0.00025753,2]
[363194766,1748619147007,-420.0,0.00025753,2]
[363194767,1748619147017,-531.83,0.00025753,2]
[363194768,1748619147027,-420.0,0.00025753,2]
[363194769,1748619147036,-479.53,0.00025753,2]
[363194770,1748619147046,-265.73,0.00025753,2]
[363194771,1748619147055,-753.24,0.00025753,2]
[363194772,1748619147065,-476.72,0.00025753,2]
[363194773,1748619147075,-420.0,0.00025753,2]
[363194774,1748619147084,-571.1,0.00025753,2]
[363194775,1748619147094,-420.0,0.00025753,2]
[363194776,1748619147103,-908.97,0.00025753,2]
[363194777,1748619147112,-420.0,0.00025753,2]
[363194778,1748619147122,-420.0,0.00025753,2]
[363194779,1748619147132,-432.46,0.00025753,2]
[363194780,1748619147141,-420.0,0.00025753,2]
[363194781,1748619147151,-420.0,0.00025753,2]
[363194782,1748619147160,-310.82825119,0.00025753,2]
[363194783,1748619147169,-157.4356761,0.00025753,2]
[363194784,1748619147179,-420.0,0.00025753,2]
[363194785,1748619147189,-2098.6,0.00025753,2]
[363194786,1748619147198,-490.07,0.00025753,2]
[363194787,1748619147208,-770.69,0.00025753,2]
[363194788,1748619147218,-420.0,0.00025753,2]
[363194789,1748619147228,-890.15,0.00025753,2]
[363194790,1748619147238,-420.86,0.00025753,2]
[363194791,1748619147248,-426.87,0.00025753,2]
[363194792,1748619147257,-424.91,0.00025753,2]
[363194793,1748619147267,-429.06,0.00025753,2]
[363194794,1748619147277,-420.0,0.00025753,2]
[363194795,1748619147287,-758.53,0.00025753,2]
[363194796,1748619147296,-772.94,0.00025753,2]
[363194797,1748619147306,-420.0,0.00025753,2]
[363194798,1748619147318,-427.85,0.00025753,2]
[363194799,1748619147328,-420.0,0.00025753,2]
[363194800,1748619147338,-456.87,0.00025753,2]
[363194801,1748619147348,-176.51433068,0.00025753,2]
[363194802,1748619147358,-420.0,0.00025753,2]
[363194803,1748619147368,-420.0,0.00025753,2]
[363194804,1748619147378,-420.0,0.00025753,2]
[363194805,1748619147387,-496.69314647,0.00025753,2]
[363194806,1748619147397,-420.0,0.00025753,2]
[363194807,1748619147407,-420.0,0.00025753,2]
[363194808,1748619147416,-777.89,0.00025753,2]
[363194809,1748619147426,-1819.65,0.00025753,2]
[363194810,1748619147436,-863.65,0.00025753,2]
[363194811,1748619147446,-1212.65,0.00025753,2]
[363194812,1748619147455,-1175.81,0.00025753,2]
[363194813,1748619147465,-553.05,0.00025753,2]
[363194814,1748619147475,-796.08,0.00025753,2]
[363194815,1748619147484,-523.03,0.00025753,2]
[363194816,1748619147494,-501.69,0.00025753,2]
[363194817,1748619147504,-1811.35,0.00025753,2]
[363194818,1748619147514,-420.0,0.00025753,2]
[363194819,1748619147524,-339.31255468,0.00025753,2]
[363194820,1748619147534,-822.17,0.00025753,2]
[363194821,1748619147544,-496.62,0.00025753,2]
[363194822,1748619147554,-641.0,0.00025753,2]
[363194823,1748619147563,-847.29,0.00025753,2]
[363194824,1748619147574,-420.0,0.00025753,2]
[363194825,1748619147584,-420.0,0.00025753,2]
[363194826,1748619147594,-1102.55,0.00025753,2]
[363194827,1748619147604,-443.43,0.00025753,2]
[363194828,1748619147614,-420.0,0.00025753,2]
[363194829,1748619147623,-443.13,0.00025753,2]
[363194830,1748619147633,-751.91,0.00025753,2]
[363194831,1748619147643,-471.7165768,0.00025753,2]
[363194832,1748619147653,-420.0,0.00025753,2]
[363194833,1748619147663,-518.42,0.00025753,2]
[363194834,1748619147673,-1199.0,0.00025753,2]
[363194835,1748619147683,-1711.43,0.00025753,2]
[363194836,1748619147693,-841.83,0.00025753,2]
[363194837,1748619147703,-508.53,0.00025753,2]
[363194838,1748619147714,-948.67,0.00025753,2]
[363194839,1748619147724,-498.55179392,0.00025753,2]
[363194840,1748619147735,-610.77,0.00025753,2]
[363194841,1748619147744,-2171.03,0.00025753,2]
[363194842,1748619147755,-420.0,0.00025753,2]
[363194843,1748619147765,-572.48,0.00025753,2]
[363194844,1748619147775,-945.97,0.00025753,2]
[363194845,1748619147785,-1319.71,0.00025753,2]
[363194846,1748619147795,-456.76,0.00025753,2]
[363194847,1748619147806,-1456.24,0.00025753,2]
[363194848,1748619147819,-636.09,0.00025753,2]
[363194849,1748619147830,-743.92,0.00025753,2]
[363194850,1748619147840,-853.5,0.00025753,2]
[363194851,1748619147851,-1258.56,0.00025753,2]
[363194852,1748619147860,-652.14,0.00025753,2]
[363194853,1748619147869,-1419.49,0.00025753,2]
[363194854,1748619147879,-569.93,0.00025753,2]
[363194855,1748619147889,-584.74,0.00025753,2]
[363194856,1748619147899,-755.51,0.00025753,2]
[363194857,1748619147909,-582.04,0.00025753,2]
[363194858,1748619147919,-178.11312863,0.00025753,2]
[363194859,1748619147929,-420.0,0.00025753,2]
[363194860,1748619147939,-353.04,0.00025753,2]
[363194861,1748619147949,-781.6,0.00025753,2]
[363194862,1748619147959,-1041.01,0.00025753,2]
[363194863,1748619147969,-1369.52,0.00025753,2]
[363194864,1748619147979,-474.65,0.00025753,2]
[363194865,1748619147992,-463.6,0.00025753,2]
[363194866,1748619148003,-1379.11,0.00025753,2]
[363194867,1748619148227,-420.0,0.00025753,2]
[363194868,1748619148237,-666.7,0.00025753,2]
[363194869,1748619148246,-1319.43,0.00025753,2]
[363194870,1748619148256,-576.82,0.00025753,2]
[363194871,1748619148265,-693.89,0.00025753,2]
[363194872,1748619148275,-741.8,0.00025753,2]
[363194873,1748619148284,-561.65,0.00025753,2]
[363194874,1748619148293,-1160.92,0.00025753,2]
[363194875,1748619148303,-472.93,0.00025753,2]
[363194876,1748619148314,-1166.17,0.00025753,2]
[363194877,1748619148324,-1207.82,0.00025753,2]
[363194878,1748619148334,-1168.26,0.00025753,2]
[363194879,1748619148344,-420.0,0.00025753,2]
[363194880,1748619148354,-420.0,0.00025753,2]
[363194881,1748619148364,-466.98,0.00025753,2]
[363194882,1748619148374,-784.43,0.00025753,2]
[363194883,1748619148384,-723.56,0.00025753,2]
[363194884,1748619148393,-1364.89,0.00025753,2]
[363194885,1748619148402,-801.75,0.00025753,2]
[363194886,1748619148412,-604.61,0.00025753,2]
[363194887,1748619148422,-587.51,0.00025753,2]
[363194888,1748619148432,-635.16,0.00025753,2]
[363194889,1748619148441,-1137.25,0.00025753,2]
[363194890,1748619148450,-786.55,0.00025753,2]
[363194891,1748619148460,-862.94,0.00025753,2]
[363194892,1748619148470,-420.0,0.00025753,2]
[363194893,1748619148480,-523.95,0.00025753,2]
[363194894,1748619148490,-1160.03,0.00025753,2]
[363194895,1748619148500,-673.65,0.00025753,2]
[363194896,1748619148511,-931.25,0.00025753,2]
[363194897,1748619148520,-420.0,0.00025753,2]
[363194898,1748619148530,-552.42,0.00025753,2]
[363194899,1748619148540,-459.7,0.00025753,2]
[363194900,1748619148550,-1724.07,0.00025753,2]
[363194901,1748619148561,-420.0,0.00025753,2]
[363194902,1748619148571,-600.48,0.00025753,2]
[363194903,1748619148581,-726.29,0.00025753,2]
[363194904,1748619148591,-472.86,0.00025753,2]
[363194905,1748619148601,-157.75443841,0.00025753,2]
[363194906,1748619148611,-1073.36,0.00025753,2]
[363194907,1748619148621,-832.22,0.00025753,2]
[363194908,1748619148630,-576.09,0.00025753,2]
[363194909,1748619148640,-1371.43,0.00025753,2]
[363194910,1748619148650,-1079.44,0.00025753,2]
[363194911,1748619148660,-538.33,0.00025753,2]
[363194912,1748619148670,-590.55,0.00025753,2]
[363194913,1748619148680,-971.8,0.00025753,2]
[363194914,1748619148689,-476.32,0.00025753,2]
[363194915,1748619148699,-550.23,0.00025753,2]
[363194916,1748619148710,-420.0,0.00025753,2]
[363194917,1748619148720,-420.0,0.00025753,2]
[363194918,1748619148729,-2381.24,0.00025753,2]
[363194919,1748619148740,-523.75,0.00025753,2]
[363194920,1748619148750,-1073.24,0.00025753,2]
[363194921,1748619148760,-659.08,0.00025753,2]
[363194922,1748619148770,-535.46,0.00025753,2]
[363194923,1748619148779,-420.0,0.00025753,2]
[363194924,1748619148790,-569.05,0.00025753,2]
[363194925,1748619148799,-420.0,0.00025753,2]
[363194926,1748619148808,-808.94,0.00025753,2]
[363194927,1748619148821,-1940.81,0.00025753,2]
[363194928,1748619148830,-463.09,0.00025753,2]
[363194929,1748619148840,-627.54,0.00025753,2]
[363194930,1748619148850,-420.0,0.00025753,2]
[363194931,1748619148859,-1123.75,0.00025753,2]
[363194932,1748619148870,-487.89,0.00025753,2]
[363194933,1748619148879,-539.2,0.00025753,2]
[363194934,1748619148889,-420.0,0.00025753,2]
[363194935,1748619148900,-420.0,0.00025753,2]
[363194936,1748619148910,-1124.04,0.00025753,2]
[363194937,1748619148919,-553.55,0.00025753,2]
[363194938,1748619148928,-1448.39,0.00025753,2]
[363194939,1748619148938,-1053.3,0.00025753,2]
[363194940,1748619148947,-584.13,0.00025753,2]
[363194941,1748619148957,-1192.82,0.00025753,2]
[363194942,1748619148967,-613.48,0.00025753,2]
[363194943,1748619148976,-420.0,0.00025753,2]
[363194944,1748619148986,-491.19,0.00025753,2]
[363194945,1748619148995,-561.99,0.00025753,2]
[363194946,1748619149004,-466.46,0.00025753,2]
[363194947,1748619149014,-1678.06,0.00025753,2]
[363194948,1748619149023,-420.0,0.00025753,2]
[363194949,1748619149032,-420.0,0.00025753,2]
[363194950,1748619149041,-1400.08,0.00025753,2]
[363194951,1748619149051,-600.46,0.00025753,2]
[363194952,1748619149061,-626.74,0.00025753,2]
[363194953,1748619149070,-729.19,0.00025753,2]
[363194954,1748619149080,-1178.79,0.00025753,2]
[363194955,1748619149090,-849.19,0.00025753,2]
[363194956,1748619149099,-1833.03,0.00025753,2]
[363194957,1748619149109,-558.24,0.00025753,2]
[363194958,1748619149119,-633.87,0.00025753,2]
[363194959,1748619149129,-358.27448857,0.00025753,2]
[363194960,1748619149138,-465.46,0.00025753,2]
[363194961,1748619149148,-420.0,0.00025753,2]
[363194962,1748619149158,-3634.58,0.00025753,2]
[363194963,1748619149167,-1085.24,0.00025753,2]
[363194964,1748619149176,-2016.38,0.00025753,2]
[363194965,1748619149185,-609.8,0.00025753,2]
[363194966,1748619149195,-1168.36,0.00025753,2]
[363194967,1748619149204,-5361.86,0.00025753,2]
[363194968,1748619149214,-2127.16,0.00025753,2]
[363194969,1748619149223,-1484.06,0.00025753,2]
[363194970,1748619149233,-420.0,0.00025753,2]
[363194971,1748619149242,-1109.67,0.00025753,2]
[363194972,1748619149252,-614.8,0.00025753,2]
[363194973,1748619149262,-575.02,0.00025753,2]
[363194974,1748619149272,-562.44,0.00025753,2]
[363194975,1748619149281,-674.8,0.00025753,2]
[363194976,1748619149291,-420.0,0.00025753,2]
[363194977,1748619149301,-1824.08,0.00025753,2]
[363194978,1748619149311,-420.0,0.00025753,2]
[363194979,1748619149320,-904.81,0.00025753,2]
[363194980,1748619149328,-490.58,0.00025753,2]
[363194981,1748619149339,-7075.98,0.00025753,2]
[363194982,1748619149348,-723.21,0.00025753,2]
[363194983,1748619149358,-420.0,0.00025753,2]
[363194984,1748619149367,-1561.66,0.00025753,2]
[363194985,1748619149377,-9812.16,0.00025753,2]
[363194986,1748619149386,-1096.87,0.00025753,2]
[363194987,1748619149395,-1075.43,0.00025753,2]
[363194988,1748619149405,-622.82,0.00025753,2]
[363194989,1748619149414,-1429.73,0.00025753,2]
[363194990,1748619149423,-915.42,0.00025753,2]
[363194991,1748619149433,-11863.32,0.00025753,2]
[363194992,1748619149442,-1946.94,0.00025753,2]
[363194993,1748619149451,-594.91,0.00025753,2]
[363194994,1748619149461,-1167.97,0.00025753,2]
[363194995,1748619149471,-797.36,0.00025753,2]
[363194996,1748619149481,-524.77,0.00025753,2]
[363194997,1748619149490,-5682.0,0.00025753,2]
[363194998,1748619149500,-1550.77,0.00025753,2]
[363194999,1748619149509,-974.63,0.00025753,2]
[363195000,1748619149519,-655.87,0.00025753,2]
[363195001,1748619149528,-702.81,0.00025753,2]
[363195002,1748619149538,-600.66,0.00025753,2]
[363195003,1748619149548,-1024.75,0.00025753,2]
[363195004,1748619149559,-609.69,0.00025753,2]
[363195005,1748619149570,-420.0,0.00025753,2]
[363195006,1748619149580,-1076.37,0.00025753,2]
[363195007,1748619149590,-464.14,0.00025753,2]
[363195008,1748619149600,-420.0,0.00025753,2]
[363195009,1748619149610,-1708.68,0.00025753,2]
[363195010,1748619149620,-476.72,0.00025753,2]
[363195011,1748619149631,-726.29,0.00025753,2]
[363195012,1748619149640,-1013.34,0.00025753,2]
[363195013,1748619149650,-850.36,0.00025753,2]
[363195014,1748619149660,-829.87,0.00025753,2]
[363195015,1748619149669,-9498.11,0.00025753,2]
[363195016,1748619149688,-1568.21,0.00025753,2]
[363195017,1748619149707,-997.73,0.00025753,2]
[363195018,1748619149718,-717.62,0.00025753,2]
[363195019,1748619149728,-862.79,0.00025753,2]
[363195020,1748619149737,-2137.81,0.00025753,2]
[363195021,1748619149747,-657.91,0.00025753,2]
[363195022,1748619149756,-985.32,0.00025753,2]
[363195023,1748619149765,-420.0,0.00025753,2]
[363195024,1748619149775,-420.0,0.00025753,2]
[363195025,1748619149785,-541.52,0.00025753,2]
[363195026,1748619149795,-1399.41,0.00025753,2]
[363195027,1748619149804,-1150.73,0.00025753,2]
[363195028,1748619149817,-420.0,0.00025753,2]
[363195029,1748619149827,-2296.95,0.00025753,2]
[363195030,1748619149836,-682.72,0.00025753,2]
[363195031,1748619149845,-795.59,0.00025753,2]
[363195032,1748619149855,-575.16,0.00025753,2]